fUST/lending_fUST_20250718
["ID","MTS","AMOUNT","RATE_DAILY","PERIOD"]
[372886024,1752792663862,-151.0,0.0002503,2]
[372886025,1752792663872,-161.7831985,0.0002503,2]
[372886026,1752792663949,-151.0,0.0002503,2]
[372886027,1752792663960,-3182.55,0.00025065,5]
[372886028,1752792663970,-154.815822,0.0002509,3]
[372886029,1752792663979,-168.0,0.00025099,2]
[372886030,1752792663989,-246.0,0.00025099,2]
[372886031,1752792663998,-250.0,0.000251,2]
[372886032,1752792664008,-1912.99572982,0.00025144,2]
[372886033,1752792664018,-3182.55,0.00025165,6]
[372886034,1752792664027,-460.0,0.00025173,2]
[372886035,1752792664040,-2386.89,0.00025173,2]
[372886036,1752792664049,-1391.15,0.00025173,2]
[372886037,1752792664059,-460.0,0.00025173,2]
[372886038,1752792664068,-505.85,0.00025173,2]
[372886039,1752792664078,-804.87,0.00025173,2]
[372886040,1752792664088,-460.0,0.00025173,2]
[372886041,1752792664099,-5152.9,0.00025173,2]
[372886042,1752792664109,-1806.81,0.00025173,2]
[372886043,1752792664119,-460.0,0.00025173,2]
[372886044,1752792664128,-216.0,0.000252,12]
[372886045,1752792664137,-294.896798,0.000252,2]
[372886046,1752792664147,-168.0,0.00025229,2]
[372886047,1752792664156,-3182.55,0.00025265,4]
[372886048,1752792664166,-151.0,0.00025265,7]
[372886049,1752792664176,-246.0,0.0002528,2]
[372886050,1752792664185,-209.91046531,0.00025304,2]
[372886051,1752792664195,-151.0,0.00025304,2]
[372886052,1752792664205,-151.0,0.00025304,2]
[372886053,1752792664214,-780.0,0.00025304,2]
[372886054,1752792664223,-151.0,0.00025304,2]
[372886055,1752792664233,-303.71816274,0.00025304,2]
[372886056,1752792664243,-423.0,0.00025304,2]
[372886057,1752792664253,-151.0,0.00025304,2]
[372886058,1752792664263,-500.0,0.00025304,2]
[372886059,1752792664272,-151.0,0.00025304,2]
[372886060,1752792664283,-151.0,0.00025304,2]
[372886061,1752792664293,-151.0,0.00025304,7]
[372886062,1752792664302,-151.0,0.00025304,7]
[372886063,1752792664313,-167.121434,0.00025304,7]
[372886064,1752792664323,-167.121434,0.00025304,7]
[372886065,1752792664332,-332.056736,0.00025304,7]
[372886066,1752792664341,-332.056736,0.00025304,7]
[372886067,1752792664351,-279.816247,0.00025304,7]
[372886068,1752792664361,-279.816247,0.00025304,7]
[372886069,1752792664370,-3182.55,0.00025365,5]
[372886070,1752792664380,-762.430122,0.00025365,7]
[372886071,1752792664389,-762.430122,0.00025365,7]
[372886072,1752792664399,-151.0,0.00025365,7]
[372886073,1752792664409,-1100.0,0.00025409,2]
[372886074,1752792664418,-194.56540372,0.00025432,2]
[372886075,1752792664428,-600.0,0.0002544,2]
[372886076,1752792664438,-160.0,0.00025447,3]
[372886077,1752792664448,-160.0,0.00025447,5]
[372886078,1752792664458,-467.58552641,0.00025447,2]
[372886079,1752792664474,-2386.89,0.00025447,2]
[372886080,1752792664495,-1391.15,0.00025447,2]
[372886081,1752792664515,-460.0,0.00025447,2]
[372886082,1752792664535,-505.85,0.00025447,2]
[372886083,1752792664560,-804.87,0.00025447,2]
[372886084,1752792664578,-460.0,0.00025447,2]
[372886085,1752792664597,-5152.9,0.00025447,2]
[372886086,1752792664613,-1806.81,0.00025447,2]
[372886087,1752792664632,-460.0,0.00025447,2]
[372886088,1752792664655,-1100.0,0.00025461,2]
[372886089,1752792664674,-3182.55,0.00025465,5]
[372886090,1752792664687,-600.0,0.0002547,2]
[372886091,1752792664707,-800.0,0.00025475,2]
[372886092,1752792664723,-154.815822,0.0002548,2]
[372886093,1752792664740,-154.0,0.000255,4]
[372886094,1752792664753,-1100.0,0.00025534,2]
[372886095,1752792664768,-3182.55,0.00025565,5]
[372886096,1752792664784,-151.0,0.00025565,7]
[372886097,1752792664799,-216.30600759,0.00025578,2]
[372886098,1752792664814,-151.0,0.00025578,2]
[372886099,1752792664829,-780.0,0.00025578,2]
[372886100,1752792664844,-198.0,0.00025578,2]
[372886101,1752792664858,-423.0,0.00025578,2]
[372886102,1752792664873,-245.0,0.00025578,2]
[372886103,1752792664887,-500.0,0.00025578,2]
[372886104,1752792664902,-151.0,0.00025578,2]
[372886105,1752792664916,-198.0,0.00025578,2]
[372886106,1752792664930,-1912.99572982,0.00025587,2]
[372886107,1752792664945,-445.44958599,0.00025587,2]
[372886108,1752792664956,-1100.0,0.00025599,2]
[372886109,1752792664966,-31668.07,0.000256,2]
[372886110,1752792664975,-1581.09,0.000256,7]
[372886111,1752792664985,-15665.81,0.000256,7]
[372886112,1752792664994,-231.28369723,0.00025614,2]
[372886113,1752792665004,-1100.0,0.0002562,2]
[372886114,1752792665014,-500.0,0.00025624,2]
[372886115,1752792665024,-500.0,0.0002563,5]
[372886116,1752792665035,-500.0,0.0002563,5]
[372886117,1752792665045,-168.0,0.0002563,2]
[372886118,1752792665055,-151.0,0.00025637,7]
[372886119,1752792665064,-151.0,0.00025637,7]
[372886120,1752792665074,-151.0,0.00025637,7]
[372886121,1752792665084,-151.0,0.00025637,7]
[372886122,1752792665093,-151.0,0.00025637,7]
[372886123,1752792665103,-151.0,0.00025637,7]
[372886124,1752792665113,-151.0,0.00025637,7]
[372886125,1752792665123,-151.0,0.00025637,7]
[372886126,1752792665133,-151.0,0.00025637,7]
[372886127,1752792665142,-151.0,0.00025637,7]
[372886128,1752792665152,-151.0,0.00025637,7]
[372886129,1752792665161,-1233.744188,0.00025637,7]
[372886130,1752792665171,-1233.744188,0.00025637,7]
[372886131,1752792665181,-1233.744188,0.00025637,7]
[372886132,1752792665384,-1233.744188,0.00025637,7]
[372886133,1752792665400,-1233.744188,0.00025637,7]
[372886134,1752792665416,-1233.744188,0.00025637,7]
[372886135,1752792665426,-1233.744188,0.00025637,7]
[372886136,1752792665436,-1233.744188,0.00025637,7]
[372886137,1752792665446,-1233.744188,0.00025637,7]
[372886138,1752792665456,-1233.744188,0.00025637,7]
[372886139,1752792665466,-1233.744188,0.00025637,7]
[372886140,1752792665477,-1233.744188,0.00025637,7]
[372886141,1752792665487,-1233.744188,0.00025637,7]
[372886142,1752792665496,-1233.744188,0.00025637,7]
[372886143,1752792665506,-1233.744188,0.00025637,7]
[372886144,1752792665519,-1233.744188,0.00025637,7]
[372886145,1752792665528,-1233.744188,0.00025637,7]
[372886146,1752792665540,-1233.744188,0.00025637,7]
[372886147,1752792665550,-219.06751721,0.00025637,7]
[372886148,1752792665568,-1014.67667079,0.00025637,7]
[372886149,1752792665577,-1233.744186,0.00025637,7]
[372886150,1752792665586,-151.0,0.00025637,7]
[372886151,1752792665596,-151.0,0.00025637,7]
[372886152,1752792665606,-151.0,0.00025637,7]
[372886153,1752792665615,-151.0,0.00025637,7]
[372886154,1752792665625,-151.0,0.00025637,7]
[372886155,1752792665634,-151.0,0.00025637,7]
[372886156,1752792665644,-292.436836,0.00025637,7]
[372886157,1752792665653,-151.0,0.00025637,7]
[372886158,1752792665662,-151.0,0.00025637,7]
[372886159,1752792665672,-151.0,0.00025637,7]
[372886160,1752792665681,-151.0,0.00025637,7]
[372886161,1752792665691,-151.0,0.00025637,7]
[372886162,1752792665700,-224.038964,0.00025637,7]
[372886163,1752792665711,-151.0,0.00025637,7]
[372886164,1752792665720,-151.0,0.00025637,7]
[372886165,1752792665729,-151.0,0.00025637,7]
[372886166,1752792665738,-151.0,0.00025637,7]
[372886167,1752792665747,-151.0,0.00025637,7]
[372886168,1752792665756,-226.12545,0.00025637,7]
[372886169,1752792665765,-289.936147,0.00025637,7]
[372886170,1752792665774,-289.936147,0.00025637,7]
[372886171,1752792665785,-289.936147,0.00025637,7]
[372886172,1752792665795,-289.936147,0.00025637,7]
[372886173,1752792665803,-289.936147,0.00025637,7]
[372886174,1752792665813,-289.936147,0.00025637,7]
[372886175,1752792665822,-289.936147,0.00025637,7]
[372886176,1752792665832,-289.936147,0.00025637,7]
[372886177,1752792665841,-289.936147,0.00025637,7]
[372886178,1752792665850,-289.936147,0.00025637,7]
[372886179,1752792665859,-289.936147,0.00025637,7]
[372886180,1752792665869,-289.936147,0.00025637,7]
[372886181,1752792665878,-289.936147,0.00025637,7]
[372886182,1752792665887,-289.936147,0.00025637,7]
[372886183,1752792665896,-289.936147,0.00025637,7]
[372886184,1752792665906,-289.936153,0.00025637,7]
[372886185,1752792665914,-238.590108,0.00025637,7]
[372886186,1752792665923,-238.590108,0.00025637,7]
[372886187,1752792665933,-238.590108,0.00025637,7]
[372886188,1752792665942,-238.590108,0.00025637,7]
[372886189,1752792665951,-238.590108,0.00025637,7]
[372886190,1752792665960,-238.590108,0.00025637,7]
[372886191,1752792665970,-69.26211323,0.00025637,7]
[372886192,1752792665982,-169.32799477,0.00025637,7]
[372886193,1752792665992,-238.590108,0.00025637,7]
[372886194,1752792666001,-238.590108,0.00025637,7]
[372886195,1752792666011,-238.590108,0.00025637,7]
[372886196,1752792666020,-238.590108,0.00025637,7]
[372886197,1752792666030,-238.590108,0.00025637,7]
[372886198,1752792666042,-238.590108,0.00025637,7]
[372886199,1752792666052,-238.590108,0.00025637,7]
[372886200,1752792666063,-238.590108,0.00025637,7]
[372886201,1752792666072,-238.590118,0.00025637,7]
[372886202,1752792666082,-151.0,0.00025643,7]
[372886203,1752792666091,-319.5178467,0.00025644,2]
[372886204,1752792666101,-576.958633,0.00025644,2]
[372886205,1752792666111,-114.78454348,0.00025644,2]
[372886206,1752792666249,-397.59519644,0.0001647,2]
[372886207,1752792666258,-0.48080356,0.0001839,2]
[372886208,1752792666270,-265.67,0.0001839,2]
[372886209,1752792667841,-193.84919644,0.0001839,2]
[372886210,1752792667851,-460.0,0.00018664,2]
[372886211,1752792667861,-460.0,0.00018938,2]
[372886212,1752792667871,-460.0,0.00019212,2]
[372886213,1752792667880,-460.0,0.00019486,2]
[372886214,1752792667890,-460.0,0.00019759,2]
[372886215,1752792667899,-460.0,0.00020033,2]
[372886216,1752792667908,-460.0,0.00020307,2]
[372886217,1752792667919,-460.0,0.00020581,2]
[372886218,1752792667928,-460.0,0.00020855,2]
[372886219,1752792667938,-460.0,0.00021129,2]
[372886220,1752792667947,-151.0,0.00021918,2]
[372886221,1752792667956,-151.0,0.00021918,2]
[372886222,1752792667966,-151.0,0.00021918,2]
[372886223,1752792667976,-151.0,0.00021918,2]
[372886224,1752792667985,-546.72,0.00021978,2]
[372886225,1752792667995,-211.33553768,0.00022252,2]
[372886226,1752792668068,-179.875076,0.00021403,2]
[372886227,1752792668078,-335.38446232,0.00022252,2]
[372886228,1752792668087,-546.72,0.00022526,2]
[372886229,1752792668097,-546.79507552,0.000228,2]
[372886230,1752792668106,-241.31712172,0.00025644,2]
[372886231,1752792668116,-178.0508326,0.00025644,2]
[372886232,1752792668125,-153.0,0.00025644,2]
[372886233,1752792668135,-576.958633,0.00025644,2]
[372886234,1752792668144,-159.7589234,0.00025644,2]
[372886235,1752792668153,-153.1567021,0.00025644,2]
[372886236,1752792668163,-178.0508326,0.00025644,2]
[372886237,1752792668172,-576.958633,0.00025644,2]
[372886238,1752792668181,-159.7589234,0.00025644,2]
[372886239,1752792668190,-159.7589234,0.00025644,2]
[372886240,1752792668200,-178.0508326,0.00025644,2]
[372886241,1752792668209,-576.958633,0.00025644,2]
[372886242,1752792668219,-159.7589234,0.00025644,2]
[372886243,1752792668228,-178.0508326,0.00025644,2]
[372886244,1752792668238,-178.0508326,0.00025644,2]
[372886245,1752792668247,-178.5573105,0.00025644,2]
[372886246,1752792668256,-428.9497036,0.00025644,2]
[372886247,1752792668266,-429.2412091,0.00025644,2]
[372886248,1752792668275,-429.2412091,0.00025644,2]
[372886249,1752792668284,-429.2412091,0.00025644,2]
[372886250,1752792668295,-428.6591303,0.00025644,2]
[372886251,1752792668305,-259.631671,0.00025644,2]
[372886252,1752792668315,-306.0,0.00025644,2]
[372886253,1752792668324,-325.5600789,0.00025644,2]
[372886254,1752792668334,-1192.4718081,0.00025644,2]
[372886255,1752792668343,-355.6466976,0.00025644,2]
[372886256,1752792668353,-151.0,0.00025644,7]
[372886257,1752792668363,-151.0,0.00025644,7]
[372886258,1752792668373,-151.0,0.00025644,7]
[372886259,1752792668382,-151.0,0.00025644,7]
[372886260,1752792668392,-151.0,0.00025644,7]
[372886261,1752792668402,-151.0,0.00025644,7]
[372886262,1752792668411,-151.0,0.00025644,7]
[372886263,1752792668421,-151.0,0.00025644,7]
[372886264,1752792668430,-278.714928,0.00025644,7]
[372886265,1752792668522,-152.200087,0.00025644,7]
[372886266,1752792668554,-151.0,0.00025644,7]
[372886267,1752792668564,-151.0,0.00025644,7]
[372886268,1752792668574,-151.0,0.00025644,7]
[372886269,1752792668584,-151.0,0.00025644,7]
[372886270,1752792668594,-294.67359,0.00025644,7]
[372886271,1752792668604,-164.695544,0.00025644,7]
[372886272,1752792668614,-164.695544,0.00025644,7]
[372886273,1752792668624,-151.0,0.00025644,7]
[372886274,1752792668635,-151.0,0.00025647,7]
[372886275,1752792668644,-151.0,0.00025647,7]
[372886276,1752792668654,-151.0,0.00025647,7]
[372886277,1752792668663,-151.0,0.00025647,7]
[372886278,1752792668673,-151.0,0.00025647,7]
[372886279,1752792668682,-151.0,0.00025647,7]
[372886280,1752792668692,-151.0,0.00025647,7]
[372886281,1752792668701,-151.0,0.00025647,7]
[372886282,1752792668710,-151.0,0.00025647,7]
[372886283,1752792668720,-151.0,0.00025647,7]
[372886284,1752792668729,-151.0,0.00025647,7]
[372886285,1752792668738,-151.0,0.00025647,7]
[372886286,1752792668748,-151.0,0.00025647,7]
[372886287,1752792668758,-297.372106,0.00025647,7]
[372886288,1752792668767,-151.0,0.00025647,7]
[372886289,1752792668777,-151.0,0.00025647,7]
[372886290,1752792668786,-151.0,0.00025647,7]
[372886291,1752792668796,-225.28456,0.00025647,7]
[372886292,1752792668805,-151.0,0.00025651,7]
[372886293,1752792668815,-151.0,0.00025651,7]
[372886294,1752792668825,-151.0,0.00025651,7]
[372886295,1752792668834,-151.0,0.00025653,7]
[372886296,1752792668843,-151.0,0.00025653,7]
[372886297,1752792668852,-151.0,0.00025655,7]
[372886298,1752792668862,-151.0,0.00025655,7]
[372886299,1752792668870,-151.0,0.00025655,7]
[372886300,1752792668881,-226.159111,0.00025655,7]
[372886301,1752792668890,-151.0,0.00025655,7]
[372886302,1752792668900,-151.0,0.00025655,7]
[372886303,1752792668909,-151.0,0.00025655,7]
[372886304,1752792668919,-151.0,0.00025655,7]
[372886305,1752792668927,-151.0,0.00025655,7]
[372886306,1752792668937,-151.0,0.00025655,7]
[372886307,1752792668947,-151.0,0.00025655,7]
[372886308,1752792668956,-151.0,0.00025655,7]
[372886309,1752792668966,-151.0,0.00025655,7]
[372886310,1752792668975,-762.430122,0.00025655,7]
[372886311,1752792668984,-762.430122,0.00025655,7]
[372886312,1752792668993,-762.430122,0.00025655,7]
[372886313,1752792669003,-762.430122,0.00025655,7]
[372886314,1752792669012,-762.430122,0.00025655,7]
[372886315,1752792669021,-762.430122,0.00025655,7]
[372886316,1752792669031,-762.430122,0.00025655,7]
[372886317,1752792669042,-762.430122,0.00025655,7]
[372886318,1752792669051,-762.430122,0.00025655,7]
[372886319,1752792669060,-762.430122,0.00025655,7]
[372886320,1752792669070,-762.430122,0.00025655,7]
[372886321,1752792669079,-762.430126,0.00025655,7]
[372886322,1752792669088,-167.121434,0.00025655,7]
[372886323,1752792669097,-167.121434,0.00025655,7]
[372886324,1752792669107,-167.121434,0.00025655,7]
[372886325,1752792669116,-167.121434,0.00025655,7]
[372886326,1752792669125,-167.121434,0.00025655,7]
[372886327,1752792669135,-167.121434,0.00025655,7]
[372886328,1752792669144,-167.121434,0.00025655,7]
[372886329,1752792669154,-167.121434,0.00025655,7]
[372886330,1752792669163,-167.121434,0.00025655,7]
[372886331,1752792669172,-167.121434,0.00025655,7]
[372886332,1752792669182,-167.121434,0.00025655,7]
[372886333,1752792669191,-167.121434,0.00025655,7]
[372886334,1752792669200,-167.121434,0.00025655,7]
[372886335,1752792669209,-167.121428,0.00025655,7]
[372886336,1752792669219,-279.816247,0.00025655,7]
[372886337,1752792669229,-279.816247,0.00025655,7]
[372886338,1752792669239,-279.816247,0.00025655,7]
[372886339,1752792669249,-279.816247,0.00025655,7]
[372886340,1752792669258,-279.816247,0.00025655,7]
[372886341,1752792669268,-279.816247,0.00025655,7]
[372886342,1752792669277,-279.816247,0.00025655,7]
[372886343,1752792669289,-279.816247,0.00025655,7]
[372886344,1752792669299,-279.816247,0.00025655,7]
[372886345,1752792669308,-279.816247,0.00025655,7]
[372886346,1752792669318,-279.816247,0.00025655,7]
[372886347,1752792669328,-279.816247,0.00025655,7]
[372886348,1752792669338,-279.816247,0.00025655,7]
[372886349,1752792669348,-279.816245,0.00025655,7]
[372886350,1752792669357,-3182.55,0.00025665,4]
[372886351,1752792669367,-151.0,0.00025668,7]
[372886352,1752792669376,-151.0,0.00025668,7]
[372886353,1752792669386,-151.0,0.00025668,7]
[372886354,1752792669396,-151.0,0.00025668,7]
[372886355,1752792669405,-272.516604,0.00025668,7]
[372886356,1752792669415,-151.0,0.00025668,7]
[372886357,1752792669426,-151.0,0.00025668,7]
[372886358,1752792669435,-151.0,0.00025668,7]
[372886359,1752792669444,-297.591924,0.00025668,7]
[372886360,1752792669455,-151.0,0.00025668,7]
[372886361,1752792669468,-151.0,0.00025668,7]
[372886362,1752792669478,-151.0,0.00025668,7]
[372886363,1752792669489,-151.0,0.00025668,7]
[372886364,1752792669499,-151.0,0.00025668,7]
[372886365,1752792669508,-151.0,0.00025668,7]
[372886366,1752792669518,-222.908348,0.00025668,7]
[372886367,1752792669530,-164.695544,0.00025668,7]
[372886368,1752792669540,-164.695544,0.00025668,7]
[372886369,1752792669550,-164.695544,0.00025668,7]
[372886370,1752792669560,-164.695544,0.00025668,7]
[372886371,1752792669569,-164.695544,0.00025668,7]
[372886372,1752792669578,-164.695544,0.00025668,7]
[372886373,1752792669588,-164.695544,0.00025668,7]
[372886374,1752792669597,-164.695544,0.00025668,7]
[372886375,1752792669607,-164.695544,0.00025668,7]
[372886376,1752792669616,-164.69554,0.00025668,7]
[372886377,1752792669626,-151.0,0.00025668,7]
[372886378,1752792669636,-151.0,0.00025668,7]
[372886379,1752792669646,-151.0,0.00025668,7]
[372886380,1752792669656,-1500.0,0.00025668,14]
[372886381,1752792669665,-1500.0,0.00025668,14]
[372886382,1752792669674,-1018.656282,0.00025668,14]
[372886383,1752792669684,-1613.0,0.0002567,2]
[372886384,1752792669693,-1100.0,0.00025672,2]
[372886385,1752792669703,-500.0,0.00025673,2]
[372886386,1752792669713,-197.73544,0.0002568,50]
[372886387,1752792669723,-151.0,0.00025681,7]
[372886388,1752792669733,-151.0,0.00025681,7]
[372886389,1752792669742,-151.0,0.00025683,7]
[372886390,1752792669752,-151.0,0.00025683,7]
[372886391,1752792669761,-151.0,0.00025683,7]
[372886392,1752792669770,-151.0,0.00025683,7]
[372886393,1752792669780,-151.0,0.00025683,7]
[372886394,1752792669791,-151.0,0.00025683,7]
[372886395,1752792669800,-151.0,0.00025683,7]
[372886396,1752792669810,-151.0,0.00025683,7]
[372886397,1752792669819,-151.0,0.00025683,7]
[372886398,1752792669830,-234.848415,0.00025683,7]
[372886399,1752792669840,-151.0,0.00025683,7]
[372886400,1752792669850,-151.0,0.00025683,7]
[372886401,1752792669859,-151.0,0.00025683,7]
[372886402,1752792669869,-151.0,0.00025683,7]
[372886403,1752792669878,-206.513461,0.00025683,7]
[372886404,1752792669887,-424.359081,0.00025683,7]
[372886405,1752792669897,-424.359081,0.00025683,7]
[372886406,1752792669906,-424.359081,0.00025683,7]
[372886407,1752792669916,-424.359081,0.00025683,7]
[372886408,1752792669926,-424.359081,0.00025683,7]
[372886409,1752792669936,-424.359081,0.00025683,7]
[372886410,1752792669945,-424.359081,0.00025683,7]
[372886411,1752792669955,-424.359081,0.00025683,7]
[372886412,1752792669965,-424.359081,0.00025683,7]
[372886413,1752792669975,-424.359081,0.00025683,7]
[372886414,1752792669986,-424.359081,0.00025683,7]
[372886415,1752792669996,-424.359081,0.00025683,7]
[372886416,1752792670006,-424.359081,0.00025683,7]
[372886417,1752792670015,-424.359081,0.00025683,7]
[372886418,1752792670024,-424.359081,0.00025683,7]
[372886419,1752792670034,-424.359081,0.00025683,7]
[372886420,1752792670045,-424.359081,0.00025683,7]
[372886421,1752792670053,-424.359081,0.00025683,7]
[372886422,1752792670062,-424.359081,0.00025683,7]
[372886423,1752792670071,-424.35909,0.00025683,7]
[372886424,1752792670081,-254.524682,0.00025683,7]
[372886425,1752792670090,-254.524682,0.00025683,7]
[372886426,1752792670100,-254.524682,0.00025683,7]
[372886427,1752792670110,-254.524682,0.00025683,7]
[372886428,1752792670119,-254.524682,0.00025683,7]
[372886429,1752792670128,-254.524682,0.00025683,7]
[372886430,1752792670137,-254.524682,0.00025683,7]
[372886431,1752792670147,-254.524682,0.00025683,7]
[372886432,1752792670156,-254.524682,0.00025683,7]
[372886433,1752792670165,-254.524682,0.00025683,7]
[372886434,1752792670174,-254.524682,0.00025683,7]
[372886435,1752792670183,-254.524682,0.00025683,7]
[372886436,1752792670192,-254.524682,0.00025683,7]
[372886437,1752792670202,-254.524682,0.00025683,7]
[372886438,1752792670211,-254.524682,0.00025683,7]
[372886439,1752792670220,-254.524682,0.00025683,7]
[372886440,1752792670229,-254.524682,0.00025683,7]
[372886441,1752792670238,-254.524682,0.00025683,7]
[372886442,1752792670247,-254.524682,0.00025683,7]
[372886443,1752792670257,-254.524682,0.00025683,7]
[372886444,1752792670266,-151.0,0.00025683,7]
[372886445,1752792670275,-151.0,0.00025683,7]
[372886446,1752792670285,-151.0,0.00025683,7]
[372886447,1752792670296,-200.0,0.00025687,30]
[372886448,1752792670305,-200.0,0.00025687,30]
[372886449,1752792670315,-312.32249007,0.00025687,30]
[372886450,1752792670325,-332.056736,0.00025687,7]
[372886451,1752792670334,-332.056736,0.00025687,7]
[372886452,1752792670344,-332.056736,0.00025687,7]
[372886453,1752792670354,-332.056736,0.00025687,7]
[372886454,1752792670364,-332.056736,0.00025687,7]
[372886455,1752792670374,-332.056736,0.00025687,7]
[372886456,1752792670383,-332.056736,0.00025687,7]
[372886457,1752792670393,-332.056726,0.00025687,7]
[372886458,1752792670403,-151.0,0.00025687,7]
[372886459,1752792670412,-151.0,0.00025687,7]
[372886460,1752792670421,-151.0,0.00025687,7]
[372886461,1752792670431,-151.0,0.00025687,7]
[372886462,1752792670441,-151.0,0.00025687,7]
[372886463,1752792670450,-151.0,0.00025687,7]
[372886464,1752792670460,-177.488532,0.00025687,7]
[372886465,1752792670471,-7538.47746097,0.00025688,2]
[372886466,1752792670499,-460.0,0.00016744,2]
[372886467,1752792670509,-310.64,0.00020319,2]
[372886468,1752792670518,-3229.765752,0.00025688,2]
[372886469,1752792670765,-34.94125947,0.00025688,2]
[372886470,1752792670777,-357093.93438938,0.00025688,2]
[372886471,1752792670787,-558.79,0.000257,30]
[372886472,1752792670800,-154.815822,0.000257,14]
[372886473,1752792670810,-9135.80599976,0.00025703,2]
[372886474,1752792670819,-132827.49420859,0.00025704,20]
[372886475,1752792670975,-47.62747418,0.00016472,2]
[372886476,1752792670987,-538.30252582,0.00016472,2]
[372886477,1752792670996,-460.0,0.00016744,2]
[372886478,1752792671006,-460.0,0.00017018,2]
[372886479,1752792671016,-255.68661818,0.00017018,2]
[372886480,1752792671029,-204.31338182,0.00017018,2]
[372886481,1752792671039,-460.0,0.00017292,2]
[372886482,1752792671051,-59.0293429,0.00022,7]
[372886483,1752792677574,-155.41869878,0.00022,7]
[372886484,1752792677584,-214.44804168,0.00025,30]
[372886485,1752792677594,-19989.92922198,0.00025704,20]
[372886486,1752792677605,-2386.76990618,0.00025704,20]
[372886487,1752792779139,426.501596,0.00013699,2]
[372886586,1752793155858,500.0,0.00027397,120]
[372886587,1752793156129,420.0,0.00027397,120]
[372886625,1752793556122,-300.0,0.00016398,2]
[372886626,1752793556144,-331.39897984,0.00016399,2]
[372886627,1752793556167,-500.0,0.00016399,2]
[372886628,1752793556189,-500.0,0.00016399,2]
[372886629,1752793556213,-500.0,0.00016399,2]
[372886630,1752793556234,-500.0,0.00016399,2]
[372886631,1752793556260,-187.93220565,0.00016399,2]
[372886632,1752793556289,-347.1941545,0.00016399,2]
[372886633,1752793556313,-500.0,0.00016399,2]
[372886634,1752793556336,-547.6801425,0.00016399,2]
[372886635,1752793556358,-64.90155521,0.000164,2]
[372886637,1752793603252,24900.0,0.00015461,2]
[372886643,1752793754107,-300.0,0.00016398,2]
[372886644,1752793754128,-202.0,0.00016399,2]
[372886645,1752793754149,-277.95391781,0.00016399,2]
[372886646,1752793754171,-311.33823053,0.00016399,2]
[372886647,1752793754195,-432.90418662,0.00016399,2]
[372886648,1752793754217,-237.99559617,0.00016399,2]
[372886649,1752793754239,-500.0,0.00016399,2]
[372886650,1752793754259,-331.75634873,0.00016399,2]
[372886651,1752793754280,-83.85281513,0.000164,2]
[372886699,1752793832282,-300.0,0.00016399,2]
[372886701,1752793832292,-169.0,0.00016399,2]
[372886703,1752793832302,-33466.40473114,0.000164,2]
[372886706,1752793832312,-19945.93765887,0.00016437,2]
[372886707,1752793832322,-224.06129587,0.00016437,2]
[372886709,1752793832332,-500.0,0.00016437,2]
[372886710,1752793832342,-500.0,0.00016437,2]
[372886711,1752793832352,-371.06207952,0.00016437,2]
[372886712,1752793832362,-500.0,0.00016437,2]
[372886713,1752793832372,-500.0,0.00016437,2]
[372886714,1752793832381,-500.0,0.00016437,2]
[372886715,1752793832391,-500.0,0.00016437,2]
[372886717,1752793832401,-500.0,0.00016437,2]